[Event "Skilling Open CCT 2021"]
[Site "Online"]
[Date "2020.11.19"]
[Round "10.1"]
[White "Vachier-Lagrave, Maxime"]
[Black "Aronian, Levon"]
[Result "1/2-1/2"]
[ECO "C65"]
[WhiteElo "2860"]
[BlackElo "2778"]
[Annotator "RC"]
[PlyCount "68"]
[EventDate "2020.11.20"]
[EventType "tourn"]
[EventCountry "NET"]
[Tiebreak "Koya+Number of black wins+Number of wins"]
[SourceTitle "playchess.com"]
[Source "ChessBase"]
[SourceQuality "1"]
[TimeControl "900+10"]

1. e4 {[%emt 0:00:00]} e5 {[%emt 0:00:00]} 2. Nf3 {[%emt 0:00:00]} Nc6 {
[%emt 0:00:00]} 3. Bb5 {[%emt 0:00:00]} Nf6 {[%emt 0:00:00]} 4. d3 {[%emt 0:00:
00]} Bc5 {[%emt 0:00:00]} 5. Bxc6 {[%emt 0:00:00]} dxc6 {[%emt 0:00:00]} 6.
Nbd2 {[%emt 0:00:00]} Be6 {[%emt 0:00:13]} 7. O-O {[%emt 0:00:01]} Bd6 {
[%emt 0:00:25]} 8. d4 {[%emt 0:00:03]} Nd7 {[%emt 0:00:04]} 9. dxe5 {[%emt 0:
00:02]} Nxe5 {[%emt 0:00:01]} 10. Nxe5 {[%emt 0:00:01]} Bxe5 {[%emt 0:00:01]}
11. f4 {[%emt 0:00:01]} Qd4+ {[%emt 0:00:31]} 12. Kh1 {[%emt 0:00:03]} Bd6 {
[%emt 0:00:01]} 13. f5 {[%emt 0:03:34]} Bd7 {[%emt 0:00:09]} 14. e5 {[%emt 0:
00:06]} Be7 {[%emt 0:00:40]} 15. f6 {[%emt 0:01:25]} gxf6 {[%emt 0:00:35]} 16.
exf6 {[%emt 0:00:00]} Bd6 {[%emt 0:00:03]} 17. Ne4 {[%emt 0:00:15]} Qxd1 {
[%emt 0:00:50]} 18. Rxd1 {[%emt 0:00:00]} O-O-O {[%emt 0:00:02]} 19. Nxd6+ {
[%emt 0:01:14]} cxd6 {[%emt 0:00:02]} 20. Rxd6 {[%emt 0:00:00]} Bf5 {[%emt 0:
00:06]} 21. Rxd8+ {[%emt 0:00:37]} Rxd8 {[%emt 0:00:00]} 22. Be3 {[%emt 0:00:
01]} Bxc2 {[%emt 0:00:39]} 23. Bxa7 {[%emt 0:00:04]} Rd1+ {[%emt 0:00:34]} 24.
Rxd1 {[%emt 0:00:02]} Bxd1 {[%emt 0:00:00]} 25. Bd4 {[%emt 0:00:01]} Kd7 {
[%emt 0:00:02]} 26. a3 {[%emt 0:00:01]} Ke6 {[%emt 0:00:12]} 27. Bc3 {[%emt 0:
00:01]} Kf5 {[%emt 0:00:12]} 28. Kg1 {[%emt 0:00:00]} h5 {[%emt 0:00:12]} 29.
g3 {[%emt 0:00:01]} Ke4 {[%emt 0:00:44]} 30. Kf2 {[%emt 0:00:02]} Bg4 {[%emt 0:
00:02]} 31. Kg2 {[%emt 0:00:03]} Be6 {[%emt 0:00:07]} 32. Kf2 {[%emt 0:00:01]}
Bg4 {[%emt 0:00:01]} 33. Kg2 {[%emt 0:00:00]} Be6 {[%emt 0:00:01]} 34. Kf2 {
[%emt 0:00:01]} Bg4 {[%emt 0:00:02]} 1/2-1/2

[Event "Skilling Open CCT 2021"]
[Site "Online"]
[Date "2020.11.19"]
[Round "10.2"]
[White "Duda, Jan-Krzysztof"]
[Black "Firouzja, Alireza"]
[Result "1-0"]
[ECO "B10"]
[WhiteElo "2774"]
[BlackElo "2703"]
[Annotator "ChessBase"]
[PlyCount "101"]
[EventDate "2020.11.20"]
[EventType "tourn"]
[EventCountry "NET"]
[Tiebreak "Koya+Number of black wins+Number of wins"]
[SourceTitle "playchess.com"]
[Source "ChessBase"]
[SourceQuality "1"]
[TimeControl "900+10"]

1. e4 {[%emt 0:00:00]} c6 {[%emt 0:00:00]} 2. Nf3 {[%emt 0:00:00]} d5 {[%emt 0:
00:00]} 3. d3 {[%emt 0:00:00]} dxe4 {[%emt 0:00:12]} 4. dxe4 {[%emt 0:00:00]}
Qxd1+ {[%emt 0:00:01]} 5. Kxd1 {[%emt 0:00:00]} Nf6 {[%emt 0:00:01]} 6. Nfd2 {
[%emt 0:00:00]} g5 {[%emt 0:00:07]} 7. a4 {[%emt 0:00:25]} Rg8 {[%emt 0:01:00]}
8. a5 {[%emt 0:00:03]} g4 {[%emt 0:00:42]} 9. Bd3 {[%emt 0:00:05]} Nbd7 {
[%emt 0:00:16]} 10. Nc4 {[%emt 0:00:03]} Nc5 {[%emt 0:00:20]} 11. Nc3 {[%emt 0:
00:16]} Be6 {[%emt 0:00:40]} 12. Be3 {[%emt 0:00:01]} Nfd7 {[%emt 0:01:13]} 13.
Bd4 {[%emt 0:00:55]} Bg7 {[%emt 0:01:06]} 14. Bxg7 {[%emt 0:00:04]} Rxg7 {
[%emt 0:00:01]} 15. Ke2 {[%emt 0:00:29]} O-O-O {[%emt 0:01:14]} 16. b4 {
[%emt 0:06:52]} Nxd3 {[%emt 0:00:25]} 17. cxd3 {[%emt 0:00:00]} Bxc4 {[%emt 0:
00:32]} 18. dxc4 {[%emt 0:00:00]} Ne5 {[%emt 0:00:29]} 19. a6 {[%emt 0:00:12]}
b6 {[%emt 0:03:19]} 20. c5 {[%emt 0:00:26]} b5 {[%emt 0:00:05]} 21. Rad1 {
[%emt 0:00:13]} Rgg8 {[%emt 0:01:39]} 22. Ke3 {[%emt 0:00:38]} Nc4+ {[%emt 0:
00:35]} 23. Ke2 {[%emt 0:00:42]} Nb2 {[%emt 0:00:58]} 24. Rb1 {[%emt 0:00:13]}
Nc4 {[%emt 0:00:25]} 25. Rbd1 {[%emt 0:00:20]} Rxd1 {[%emt 0:00:02]} 26. Rxd1 {
[%emt 0:00:02]} Kc7 {[%emt 0:00:11]} 27. Na2 {[%emt 0:00:17]} Rg5 {[%emt 0:00:
18]} 28. Nc1 {[%emt 0:00:06]} Rh5 {[%emt 0:00:52]} 29. Rh1 {[%emt 0:00:02]} Re5
{[%emt 0:00:03]} 30. f3 {[%emt 0:00:19]} gxf3+ {[%emt 0:00:01]} 31. gxf3 {
[%emt 0:00:00]} Rg5 {[%emt 0:00:11]} 32. Kf2 {[%emt 0:00:24]} Rg8 {[%emt 0:00:
31]} 33. Rd1 {[%emt 0:00:10]} Ne5 {[%emt 0:00:22]} 34. Nd3 {[%emt 0:00:26]} Nd7
{[%emt 0:00:34]} 35. h4 {[%emt 0:01:08]} e5 {[%emt 0:00:22]} 36. Ne1 {[%emt 0:
00:23]} Nb8 {[%emt 0:00:33]} 37. Ra1 {[%emt 0:00:03]} f6 {[%emt 0:00:08]} 38.
Nc2 {[%emt 0:00:01]} Rd8 {[%emt 0:00:29]} 39. Ke2 {[%emt 0:00:03]} Rd7 {
[%emt 0:00:26]} 40. h5 {[%emt 0:00:08]} Rg7 {[%emt 0:00:36]} 41. Ne3 {[%emt 0:
00:02]} Rg5 {[%emt 0:00:03]} 42. h6 {[%emt 0:00:01]} Rg8 {[%emt 0:00:34]} 43.
Ng4 {[%emt 0:00:10]} Rf8 {[%emt 0:00:06]} 44. Kd3 {[%emt 0:00:02]} Nd7 {
[%emt 0:00:12]} 45. Ne3 {[%emt 0:00:07]} Rg8 {[%emt 0:00:01]} 46. Ke2 {[%emt 0:
00:40]} Rg5 {[%emt 0:00:22]} 47. Rd1 {[%emt 0:00:22]} Nb8 {[%emt 0:00:02]} 48.
Rd6 {[%emt 0:00:10]} Nd7 {[%emt 0:00:26]} 49. Re6 {[%emt 0:00:14]} Rg6 {
[%emt 0:00:09]} 50. Ng4 {[%emt 0:00:02]} Rg5 {[%emt 0:00:26]} 51. Re7 {[%emt 0:
00:01]} 1-0

[Event "Skilling Open CCT 2021"]
[Site "Online"]
[Date "2020.11.19"]
[Round "10.3"]
[White "Ding, Liren"]
[Black "Anton Guijarro, David"]
[Result "1-0"]
[ECO "D02"]
[WhiteElo "2836"]
[BlackElo "2667"]
[Annotator "ChessBase"]
[PlyCount "85"]
[EventDate "2020.11.20"]
[EventType "tourn"]
[EventCountry "NET"]
[Tiebreak "Koya+Number of black wins+Number of wins"]
[SourceTitle "playchess.com"]
[Source "ChessBase"]
[SourceQuality "1"]
[TimeControl "900+10"]

1. Nf3 {[%emt 0:00:00]} d5 {[%emt 0:00:00]} 2. g3 {[%emt 0:00:00]} g6 {[%emt 0:
00:00]} 3. Bg2 {[%emt 0:00:00]} Bg7 {[%emt 0:00:01]} 4. d4 {[%emt 0:00:00]} c6
{[%emt 0:00:05]} 5. O-O {[%emt 0:00:20]} Nf6 {[%emt 0:00:04]} 6. b3 {[%emt 0:
00:01]} O-O {[%emt 0:00:04]} 7. Bb2 {[%emt 0:00:02]} a5 {[%emt 0:00:41]} 8. a4
{[%emt 0:01:46]} Bf5 {[%emt 0:00:38]} 9. e3 {[%emt 0:00:06]} Ne4 {[%emt 0:00:
40]} 10. Qe2 {[%emt 0:01:02]} Nd7 {[%emt 0:00:25]} 11. c4 {[%emt 0:00:38]} Qb6
{[%emt 0:00:31]} 12. Nbd2 {[%emt 0:01:11]} Ndf6 {[%emt 0:01:23]} 13. Rfc1 {
[%emt 0:00:32]} Bg4 {[%emt 0:01:08]} 14. Qd3 {[%emt 0:00:38]} Bf5 {[%emt 0:00:
12]} 15. Qe2 {[%emt 0:00:30]} Bg4 {[%emt 0:00:06]} 16. cxd5 {[%emt 0:00:34]}
Nxd2 {[%emt 0:01:36]} 17. Qxd2 {[%emt 0:00:03]} Nxd5 {[%emt 0:00:49]} 18. Qd3 {
[%emt 0:01:13]} Rad8 {[%emt 0:01:32]} 19. Nd2 {[%emt 0:00:17]} Nb4 {[%emt 0:00:
01]} 20. Qf1 {[%emt 0:00:27]} Bf5 {[%emt 0:00:11]} 21. Nc4 {[%emt 0:00:46]} Qa6
{[%emt 0:00:04]} 22. Bc3 {[%emt 0:00:14]} Bd3 {[%emt 0:00:53]} 23. Qd1 {
[%emt 0:00:37]} Bxc4 {[%emt 0:00:29]} 24. bxc4 {[%emt 0:00:00]} e5 {[%emt 0:03:
57]} 25. d5 {[%emt 0:01:29]} f5 {[%emt 0:00:33]} 26. Rab1 {[%emt 0:02:28]} c5 {
[%emt 0:00:17]} 27. e4 {[%emt 0:00:04]} f4 {[%emt 0:00:16]} 28. Rb2 {[%emt 0:
00:20]} Qf6 {[%emt 0:00:17]} 29. Bh3 {[%emt 0:00:29]} h5 {[%emt 0:00:27]} 30.
Kh1 {[%emt 0:02:29]} Bh6 {[%emt 0:01:08]} 31. Rcb1 {[%emt 0:00:02]} f3 {
[%emt 0:00:32]} 32. Rb3 {[%emt 0:00:11]} Kg7 {[%emt 0:00:07]} 33. Ba1 {[%emt 0:
00:12]} Kh7 {[%emt 0:00:10]} 34. Ra3 {[%emt 0:00:04]} Qa6 {[%emt 0:00:32]} 35.
Bf1 {[%emt 0:00:19]} Nc6 {[%emt 0:00:17]} 36. Rxf3 {[%emt 0:00:05]} Nd4 {
[%emt 0:00:05]} 37. Rxf8 {[%emt 0:00:12]} Rxf8 {[%emt 0:00:03]} 38. Bxd4 {
[%emt 0:00:11]} exd4 {[%emt 0:00:31]} 39. f4 {[%emt 0:00:03]} b6 {[%emt 0:00:
03]} 40. e5 {[%emt 0:00:19]} Kh8 {[%emt 0:00:01]} 41. Bd3 {[%emt 0:00:02]} Kg7
{[%emt 0:00:06]} 42. Qf3 {[%emt 0:00:03]} Qb7 {[%emt 0:00:09]} 43. Qe4 {
[%emt 0:00:02]} 1-0

[Event "Skilling Open CCT 2021"]
[Site "Online"]
[Date "2020.11.19"]
[Round "10.4"]
[White "Giri, Anish"]
[Black "Radjabov, Teimour"]
[Result "1/2-1/2"]
[ECO "E52"]
[WhiteElo "2731"]
[BlackElo "2758"]
[Annotator "RC"]
[PlyCount "63"]
[EventDate "2020.11.20"]
[EventType "tourn"]
[EventCountry "NET"]
[Tiebreak "Koya+Number of black wins+Number of wins"]
[SourceTitle "playchess.com"]
[Source "ChessBase"]
[SourceQuality "1"]
[TimeControl "900+10"]

1. d4 {[%emt 0:00:00]} Nf6 {[%emt 0:00:00]} 2. c4 {[%emt 0:00:00]} e6 {[%emt 0:
00:00]} 3. Nc3 {[%emt 0:00:00]} Bb4 {[%emt 0:00:00]} 4. e3 {[%emt 0:00:00]} d5
{[%emt 0:00:00]} 5. Nf3 {[%emt 0:00:02]} O-O {[%emt 0:00:00]} 6. Bd2 {[%emt 0:
00:01]} b6 {[%emt 0:00:22]} 7. cxd5 {[%emt 0:00:06]} exd5 {[%emt 0:00:03]} 8.
Rc1 {[%emt 0:00:01]} Bb7 {[%emt 0:00:23]} 9. Bd3 {[%emt 0:00:02]} Nbd7 {
[%emt 0:00:21]} 10. O-O {[%emt 0:00:50]} a6 {[%emt 0:00:29]} 11. Ne5 {[%emt 0:
00:27]} Bd6 {[%emt 0:01:14]} 12. f4 {[%emt 0:00:05]} Ne4 {[%emt 0:00:11]} 13.
Be1 {[%emt 0:01:26]} Ndf6 {[%emt 0:00:40]} 14. Bh4 {[%emt 0:00:22]} Qe8 {
[%emt 0:00:23]} 15. Qf3 {[%emt 0:04:17]} c5 {[%emt 0:01:33]} 16. Bxf6 {[%emt 0:
03:12]} Nxf6 {[%emt 0:00:14]} 17. g4 {[%emt 0:01:24]} Rd8 {[%emt 0:00:53]} 18.
Rcd1 {[%emt 0:02:13]} g6 {[%emt 0:02:03]} 19. g5 {[%emt 0:00:09]} Nh5 {[%emt 0:
00:21]} 20. Be2 {[%emt 0:00:24]} f6 {[%emt 0:00:53]} 21. gxf6 {[%emt 0:00:03]}
Nxf6 {[%emt 0:00:02]} 22. Qg2 {[%emt 0:00:10]} Qe7 {[%emt 0:01:15]} 23. Bf3 {
[%emt 0:00:06]} Kh8 {[%emt 0:01:12]} 24. Kh1 {[%emt 0:00:04]} Qe6 {[%emt 0:00:
29]} 25. a3 {[%emt 0:00:28]} Rg8 {[%emt 0:00:21]} 26. Rg1 {[%emt 0:00:11]} Rg7
{[%emt 0:00:43]} 27. Qg5 {[%emt 0:00:08]} Rf8 {[%emt 0:00:52]} 28. Rde1 {
[%emt 0:00:39]} Kg8 {[%emt 0:00:39]} 29. Qg2 {[%emt 0:01:17]} Kh8 {[%emt 0:00:
25]} 30. Qg5 {[%emt 0:00:03]} Kg8 {[%emt 0:00:01]} 31. Qg2 {[%emt 0:00:01]} Kh8
{[%emt 0:00:01]} 32. Qg5 {[%emt 0:00:01]} 1/2-1/2

[Event "Skilling Open CCT 2021"]
[Site "Online"]
[Date "2020.11.19"]
[Round "10.5"]
[White "Karjakin, Sergey"]
[Black "Carlsen, Magnus"]
[Result "1-0"]
[ECO "C41"]
[WhiteElo "2709"]
[BlackElo "2881"]
[Annotator "ChessBase"]
[PlyCount "103"]
[EventDate "2020.11.20"]
[EventType "tourn"]
[EventCountry "NET"]
[Tiebreak "Koya+Number of black wins+Number of wins"]
[SourceTitle "playchess.com"]
[Source "ChessBase"]
[SourceQuality "1"]
[TimeControl "900+10"]

1. e4 {[%emt 0:00:00]} e5 {[%emt 0:00:00]} 2. Nf3 {[%emt 0:00:00]} d6 {[%emt 0:
00:00]} 3. d4 {[%emt 0:00:00]} exd4 {[%emt 0:00:00]} 4. Nxd4 {[%emt 0:00:07]}
Nf6 {[%emt 0:00:00]} 5. Nc3 {[%emt 0:00:01]} Be7 {[%emt 0:00:00]} 6. g3 {
[%emt 0:00:02]} O-O {[%emt 0:00:00]} 7. Bg2 {[%emt 0:00:01]} Re8 {[%emt 0:00:
09]} 8. O-O {[%emt 0:00:03]} Bf8 {[%emt 0:00:02]} 9. h3 {[%emt 0:00:37]} Nbd7 {
[%emt 0:00:27]} 10. g4 {[%emt 0:00:28]} Nc5 {[%emt 0:00:33]} 11. Re1 {[%emt 0:
00:03]} c6 {[%emt 0:02:58]} 12. g5 {[%emt 0:01:40]} Nfd7 {[%emt 0:00:04]} 13.
f4 {[%emt 0:00:02]} a5 {[%emt 0:00:36]} 14. Be3 {[%emt 0:00:58]} Qc7 {[%emt 0:
01:15]} 15. a4 {[%emt 0:00:22]} Na6 {[%emt 0:00:48]} 16. Qd2 {[%emt 0:02:20]}
Ndc5 {[%emt 0:00:02]} 17. Rad1 {[%emt 0:00:12]} Bd7 {[%emt 0:00:02]} 18. Nde2 {
[%emt 0:01:15]} Rad8 {[%emt 0:01:19]} 19. Ng3 {[%emt 0:00:03]} Qc8 {[%emt 0:01:
54]} 20. Kh2 {[%emt 0:00:12]} d5 {[%emt 0:00:28]} 21. e5 {[%emt 0:02:34]} Nb4 {
[%emt 0:00:39]} 22. Qf2 {[%emt 0:00:05]} b6 {[%emt 0:00:14]} 23. Bd4 {[%emt 0:
01:05]} Bf5 {[%emt 0:00:19]} 24. Re2 {[%emt 0:00:40]} g6 {[%emt 0:00:39]} 25.
Nxf5 {[%emt 0:01:36]} Qxf5 {[%emt 0:00:16]} 26. h4 {[%emt 0:00:02]} Ne6 {
[%emt 0:00:32]} 27. Rf1 {[%emt 0:00:23]} c5 {[%emt 0:02:49]} 28. Be3 {[%emt 0:
00:44]} d4 {[%emt 0:00:01]} 29. Bh3 {[%emt 0:00:40]} dxe3 {[%emt 0:00:02]} 30.
Qg3 {[%emt 0:00:06]} Qxc2 {[%emt 0:00:03]} 31. Rxc2 {[%emt 0:00:02]} Nxc2 {
[%emt 0:00:00]} 32. f5 {[%emt 0:00:52]} Rd2+ {[%emt 0:00:03]} 33. Kh1 {[%emt 0:
00:02]} gxf5 {[%emt 0:00:08]} 34. Bxf5 {[%emt 0:00:04]} e2 {[%emt 0:02:13]} 35.
Nxe2 {[%emt 0:00:03]} Rxe2 {[%emt 0:00:00]} 36. Bxe6 {[%emt 0:00:30]} Rxe6 {
[%emt 0:00:32]} 37. Qf3 {[%emt 0:00:03]} Re7 {[%emt 0:00:01]} 38. Qxe2 {
[%emt 0:00:03]} Nd4 {[%emt 0:00:00]} 39. Qc4 {[%emt 0:00:18]} Nc6 {[%emt 0:00:
42]} 40. Qb5 {[%emt 0:00:06]} Nxe5 {[%emt 0:00:01]} 41. Qxb6 {[%emt 0:00:01]}
Nc4 {[%emt 0:00:09]} 42. Qb8 {[%emt 0:00:26]} Re4 {[%emt 0:00:13]} 43. Rf4 {
[%emt 0:01:11]} Rxf4 {[%emt 0:00:02]} 44. Qxf4 {[%emt 0:00:01]} Nxb2 {[%emt 0:
00:00]} 45. h5 {[%emt 0:00:09]} c4 {[%emt 0:00:05]} 46. Qd4 {[%emt 0:00:38]}
Nxa4 {[%emt 0:00:16]} 47. Qxc4 {[%emt 0:00:03]} Nc5 {[%emt 0:00:04]} 48. g6 {
[%emt 0:00:21]} hxg6 {[%emt 0:00:00]} 49. hxg6 {[%emt 0:00:01]} Ne6 {[%emt 0:
00:02]} 50. Qd5 {[%emt 0:00:03]} a4 {[%emt 0:00:50]} 51. Qf5 {[%emt 0:00:19]}
Nd8 {[%emt 0:00:03]} 52. Qd7 {[%emt 0:00:02]} 1-0

[Event "Skilling Open CCT 2021"]
[Site "Online"]
[Date "2020.11.19"]
[Round "10.6"]
[White "Nakamura, Hikaru"]
[Black "Nepomniachtchi, Ian"]
[Result "1-0"]
[ECO "B90"]
[WhiteElo "2829"]
[BlackElo "2778"]
[Annotator "RC"]
[PlyCount "81"]
[EventDate "2020.11.20"]
[EventType "tourn"]
[EventCountry "NET"]
[Tiebreak "Koya+Number of black wins+Number of wins"]
[SourceTitle "playchess.com"]
[Source "ChessBase"]
[SourceQuality "1"]
[TimeControl "900+10"]

1. e4 {[%emt 0:00:00]} c5 {[%emt 0:00:00]} 2. Nf3 {[%emt 0:00:00]} d6 {[%emt 0:
00:00]} 3. d4 {[%emt 0:00:00]} cxd4 {[%emt 0:00:00]} 4. Nxd4 {[%emt 0:00:00]}
Nf6 {[%emt 0:00:00]} 5. Nc3 {[%emt 0:00:00]} a6 {[%emt 0:00:00]} 6. Bd3 {
[%emt 0:00:00]} e5 {[%emt 0:00:49]} 7. Nde2 {[%emt 0:00:13]} Be7 {[%emt 0:00:
01]} 8. O-O {[%emt 0:00:04]} O-O {[%emt 0:00:03]} 9. Ng3 {[%emt 0:00:05]} Be6 {
[%emt 0:00:08]} 10. Nd5 {[%emt 0:00:04]} Bxd5 {[%emt 0:00:45]} 11. exd5 {
[%emt 0:00:00]} g6 {[%emt 0:00:01]} 12. c4 {[%emt 0:00:26]} Nbd7 {[%emt 0:00:
03]} 13. a3 {[%emt 0:01:22]} Nc5 {[%emt 0:00:07]} 14. Bc2 {[%emt 0:00:12]} b5 {
[%emt 0:00:04]} 15. b4 {[%emt 0:00:21]} Nb7 {[%emt 0:01:43]} 16. cxb5 {[%emt 0:
00:23]} axb5 {[%emt 0:00:04]} 17. Bh6 {[%emt 0:01:21]} Re8 {[%emt 0:00:03]} 18.
Bd3 {[%emt 0:00:01]} Nxd5 {[%emt 0:00:25]} 19. Qf3 {[%emt 0:00:07]} Nc3 {
[%emt 0:01:55]} 20. Qxb7 {[%emt 0:03:26]} d5 {[%emt 0:00:04]} 21. Bd2 {[%emt 0:
00:17]} Rb8 {[%emt 0:00:36]} 22. Qa7 {[%emt 0:00:12]} Ne4 {[%emt 0:00:37]} 23.
Bxe4 {[%emt 0:00:19]} dxe4 {[%emt 0:00:03]} 24. Rfd1 {[%emt 0:00:58]} f5 {
[%emt 0:00:08]} 25. Bc3 {[%emt 0:00:07]} Bd6 {[%emt 0:00:03]} 26. Qe3 {[%emt 0:
00:21]} Qf6 {[%emt 0:00:17]} 27. Bb2 {[%emt 0:00:45]} Bc7 {[%emt 0:00:06]} 28.
Qb3+ {[%emt 0:00:05]} Kh8 {[%emt 0:00:21]} 29. Rd7 {[%emt 0:00:14]} Bb6 {
[%emt 0:00:04]} 30. Rad1 {[%emt 0:00:02]} Re6 {[%emt 0:00:19]} 31. Bc1 {
[%emt 0:00:19]} Rbe8 {[%emt 0:00:26]} 32. Be3 {[%emt 0:00:31]} Bxe3 {[%emt 0:
00:03]} 33. fxe3 {[%emt 0:00:03]} h5 {[%emt 0:00:02]} 34. Rc7 {[%emt 0:00:27]}
h4 {[%emt 0:00:03]} 35. Ne2 {[%emt 0:00:06]} f4 {[%emt 0:00:15]} 36. exf4 {
[%emt 0:00:12]} exf4 {[%emt 0:00:02]} 37. Nxf4 {[%emt 0:00:20]} Rf8 {[%emt 0:
02:36]} 38. Qxe6 {[%emt 0:00:09]} Qxf4 {[%emt 0:00:03]} 39. Qb6 {[%emt 0:00:05]
} h3 {[%emt 0:00:25]} 40. Qd4+ {[%emt 0:00:08]} Rf6 {[%emt 0:00:07]} 41. Rc6 {
[%emt 0:00:07]} 1-0

[Event "Skilling Open CCT 2021"]
[Site "Online"]
[Date "2020.11.19"]
[Round "10.7"]
[White "Le, Quang Liem"]
[Black "Svidler, Peter"]
[Result "1-0"]
[ECO "B85"]
[WhiteElo "2744"]
[BlackElo "2742"]
[Annotator "RC"]
[PlyCount "63"]
[EventDate "2020.11.20"]
[EventType "tourn"]
[EventCountry "NET"]
[Tiebreak "Koya+Number of black wins+Number of wins"]
[SourceTitle "playchess.com"]
[Source "ChessBase"]
[SourceQuality "1"]
[TimeControl "900+10"]

1. e4 {[%emt 0:00:00]} c5 {[%emt 0:00:00]} 2. Nf3 {[%emt 0:00:00]} d6 {[%emt 0:
00:00]} 3. d4 {[%emt 0:00:00]} cxd4 {[%emt 0:00:00]} 4. Nxd4 {[%emt 0:00:00]}
Nf6 {[%emt 0:00:00]} 5. Nc3 {[%emt 0:00:00]} a6 {[%emt 0:00:00]} 6. Be2 {
[%emt 0:00:00]} e6 {[%emt 0:00:00]} 7. O-O {[%emt 0:00:11]} Be7 {[%emt 0:00:06]
} 8. f4 {[%emt 0:00:03]} Qc7 {[%emt 0:00:09]} 9. Bf3 {[%emt 0:00:10]} O-O {
[%emt 0:00:09]} 10. Be3 {[%emt 0:00:09]} Nc6 {[%emt 0:00:29]} 11. a4 {[%emt 0:
01:52]} Re8 {[%emt 0:00:09]} 12. Kh1 {[%emt 0:00:04]} Rb8 {[%emt 0:00:26]} 13.
g4 {[%emt 0:00:19]} Nxd4 {[%emt 0:00:02]} 14. Bxd4 {[%emt 0:00:09]} e5 {
[%emt 0:00:01]} 15. fxe5 {[%emt 0:01:17]} dxe5 {[%emt 0:00:01]} 16. Ba7 {
[%emt 0:00:01]} Ra8 {[%emt 0:00:01]} 17. g5 {[%emt 0:00:01]} Rd8 {[%emt 0:00:
01]} 18. Qe2 {[%emt 0:00:39]} Ne8 {[%emt 0:00:02]} 19. Be3 {[%emt 0:00:40]} Be6
{[%emt 0:00:02]} 20. Nd5 {[%emt 0:02:17]} Bxd5 {[%emt 0:00:04]} 21. exd5 {
[%emt 0:00:00]} Nd6 {[%emt 0:01:40]} 22. a5 {[%emt 0:03:41]} e4 {[%emt 0:01:57]
} 23. Bg2 {[%emt 0:00:19]} Rac8 {[%emt 0:00:01]} 24. Rf2 {[%emt 0:01:12]} Qc4 {
[%emt 0:02:02]} 25. Rd1 {[%emt 0:00:03]} Qa2 {[%emt 0:01:12]} 26. Bh3 {[%emt 0:
01:03]} Rc4 {[%emt 0:00:53]} 27. b3 {[%emt 0:00:10]} Rc3 {[%emt 0:00:03]} 28.
Bd4 {[%emt 0:00:14]} Qxa5 {[%emt 0:01:35]} 29. Qe1 {[%emt 0:00:57]} Nb5 {
[%emt 0:00:03]} 30. Qxe4 {[%emt 0:00:36]} Bf8 {[%emt 0:01:30]} 31. Be6 {
[%emt 0:01:30]} Nd6 {[%emt 0:03:27]} 32. Qe1 {[%emt 0:00:09]} 1-0

[Event "Skilling Open CCT 2021"]
[Site "Online"]
[Date "2020.11.19"]
[Round "10.8"]
[White "Vidit, Santosh Gujrathi"]
[Black "So, Wesley"]
[Result "1/2-1/2"]
[ECO "D37"]
[WhiteElo "2636"]
[BlackElo "2741"]
[Annotator "RC"]
[PlyCount "92"]
[EventDate "2020.11.20"]
[EventType "tourn"]
[EventCountry "NET"]
[Tiebreak "Koya+Number of black wins+Number of wins"]
[SourceTitle "playchess.com"]
[Source "ChessBase"]
[SourceQuality "1"]
[TimeControl "900+10"]

1. d4 {[%emt 0:00:00]} Nf6 {[%emt 0:00:00]} 2. c4 {[%emt 0:00:00]} e6 {[%emt 0:
00:00]} 3. Nf3 {[%emt 0:00:00]} d5 {[%emt 0:00:00]} 4. Nc3 {[%emt 0:00:00]} Be7
{[%emt 0:00:00]} 5. Bf4 {[%emt 0:00:00]} O-O {[%emt 0:00:00]} 6. e3 {[%emt 0:
00:00]} Nbd7 {[%emt 0:00:00]} 7. Be2 {[%emt 0:00:00]} dxc4 {[%emt 0:00:01]} 8.
O-O {[%emt 0:00:00]} c5 {[%emt 0:00:04]} 9. dxc5 {[%emt 0:00:00]} Nxc5 {
[%emt 0:00:00]} 10. Bxc4 {[%emt 0:00:04]} Qxd1 {[%emt 0:00:06]} 11. Rfxd1 {
[%emt 0:00:01]} b6 {[%emt 0:00:00]} 12. Ne5 {[%emt 0:00:02]} Bb7 {[%emt 0:00:
10]} 13. f3 {[%emt 0:00:01]} Nh5 {[%emt 0:00:14]} 14. b4 {[%emt 0:00:04]} Na6 {
[%emt 0:00:01]} 15. a3 {[%emt 0:00:01]} Nb8 {[%emt 0:00:09]} 16. Rac1 {[%emt 0:
00:08]} g5 {[%emt 0:01:02]} 17. Bg3 {[%emt 0:00:02]} Nxg3 {[%emt 0:00:02]} 18.
hxg3 {[%emt 0:00:01]} Nc6 {[%emt 0:00:00]} 19. Ba6 {[%emt 0:00:13]} Nxe5 {
[%emt 0:00:08]} 20. Bxb7 {[%emt 0:00:02]} Rad8 {[%emt 0:00:02]} 21. Ba6 {
[%emt 0:00:28]} Nd7 {[%emt 0:01:11]} 22. Kf2 {[%emt 0:04:00]} Nb8 {[%emt 0:00:
19]} 23. Be2 {[%emt 0:00:10]} a5 {[%emt 0:00:24]} 24. Na4 {[%emt 0:00:20]} axb4
{[%emt 0:00:53]} 25. axb4 {[%emt 0:00:02]} Bxb4 {[%emt 0:00:11]} 26. Nxb6 {
[%emt 0:00:16]} Be7 {[%emt 0:02:48]} 27. Rxd8 {[%emt 0:00:32]} Bxd8 {[%emt 0:
00:17]} 28. Nc4 {[%emt 0:00:28]} Nd7 {[%emt 0:00:05]} 29. f4 {[%emt 0:00:12]}
h6 {[%emt 0:00:15]} 30. Bf3 {[%emt 0:00:20]} Bf6 {[%emt 0:00:30]} 31. Nd6 {
[%emt 0:00:19]} Be7 {[%emt 0:00:29]} 32. Rc7 {[%emt 0:00:38]} Bxd6 {[%emt 0:00:
08]} 33. Rxd7 {[%emt 0:00:00]} Bc5 {[%emt 0:00:07]} 34. Bh5 {[%emt 0:00:13]} f5
{[%emt 0:00:53]} 35. Rc7 {[%emt 0:02:02]} Bd6 {[%emt 0:00:18]} 36. Rd7 {
[%emt 0:00:03]} Bc5 {[%emt 0:00:03]} 37. Ke2 {[%emt 0:01:18]} Rb8 {[%emt 0:02:
58]} 38. Bf7+ {[%emt 0:00:21]} Kh8 {[%emt 0:00:03]} 39. Bxe6 {[%emt 0:00:22]}
Re8 {[%emt 0:00:02]} 40. Bxf5 {[%emt 0:00:10]} Rxe3+ {[%emt 0:00:05]} 41. Kf1 {
[%emt 0:00:02]} Rxg3 {[%emt 0:00:46]} 42. fxg5 {[%emt 0:00:14]} Rxg5 {[%emt 0:
00:11]} 43. g4 {[%emt 0:00:01]} h5 {[%emt 0:00:13]} 44. Rh7+ {[%emt 0:00:04]}
Kg8 {[%emt 0:00:01]} 45. Rxh5 {[%emt 0:00:01]} Rxh5 {[%emt 0:00:02]} 46. gxh5 {
[%emt 0:00:02]} Kg7 {[%emt 0:00:01]} 1/2-1/2